fUSD/lending_fUSD_20250216
["ID","MTS","AMOUNT","RATE_DAILY","PERIOD"]
[353303032,1739743863557,-500.0,0.00011698,2]
[353303033,1739743863567,-500.0,0.00011698,2]
[353303034,1739743863578,-420.28,0.00011698,2]
[353303035,1739743863589,-195.62,0.00011698,2]
[353303036,1739743863599,-569.07,0.00011698,2]
[353303037,1739743863611,-639.31,0.00011698,2]
[353303038,1739743863621,-500.0,0.00011698,2]
[353303039,1739743863631,-500.0,0.00011698,2]
[353303040,1739743863641,-500.0,0.00011698,2]
[353303041,1739743863651,-500.0,0.00011698,2]
[353303042,1739743863661,-500.0,0.00011698,2]
[353303043,1739743863672,-500.0,0.00011698,2]
[353303044,1739743863683,-746.52,0.00011698,2]
[353303045,1739743863693,-620.87,0.00011698,2]
[353303046,1739743863704,-527.75,0.00011698,2]
[353303047,1739743863714,-703.13,0.00011698,2]
[353303048,1739743863724,-758.03,0.00011698,2]
[353303049,1739743863734,-500.0,0.00011698,2]
[353303050,1739743863745,-500.0,0.00011698,2]
[353303051,1739743863755,-500.0,0.00011698,2]
[353303052,1739743863765,-500.0,0.00011698,2]
[353303053,1739743863776,-500.0,0.00011698,2]
[353303054,1739743863786,-523.85,0.00011698,2]
[353303055,1739743863796,-500.0,0.00011698,2]
[353303056,1739743863806,-500.0,0.00011698,2]
[353303057,1739743863817,-536.09,0.00011698,2]
[353303058,1739743863827,-500.0,0.00011698,2]
[353303059,1739743863838,-500.0,0.00011698,2]
[353303060,1739743863848,-640.13,0.00011698,2]
[353303061,1739743863859,-500.0,0.00011698,2]
[353303062,1739743863869,-755.41,0.00011698,2]
[353303063,1739743863879,-828.92,0.00011698,2]
[353303064,1739743863888,-1036.75,0.00011698,2]
[353303065,1739743863899,-657.03,0.00011698,2]
[353303066,1739743863908,-1298.67,0.00011698,2]
[353303067,1739743863918,-1000.0,0.00011698,2]
[353303068,1739743863929,-1040.32,0.00011698,2]
[353303069,1739743863940,-1172.76,0.00011698,2]
[353303070,1739743863950,-500.0,0.00011698,2]
[353303071,1739743863961,-500.0,0.00011698,2]
[353303072,1739743863972,-881.8,0.00011698,2]
[353303073,1739743863983,-500.0,0.00011698,2]
[353303074,1739743863993,-500.0,0.00011698,2]
[353303075,1739743864003,-1378.98,0.00011698,2]
[353303076,1739743864014,-537.54,0.00011698,2]
[353303077,1739743864024,-1016.8,0.00011698,2]
[353303078,1739743864035,-500.0,0.00011698,2]
[353303079,1739743864045,-1632.01,0.00011698,2]
[353303080,1739743864055,-740.54,0.00011698,2]
[353303081,1739743864066,-853.23,0.00011698,2]
[353303082,1739743864076,-543.84,0.00011698,2]
[353303083,1739743864086,-716.65,0.00011698,2]
[353303084,1739743864096,-500.0,0.00011698,2]
[353303085,1739743864107,-618.51,0.00011698,2]
[353303086,1739743864117,-599.54,0.00011698,2]
[353303087,1739743864127,-500.0,0.00011698,2]
[353303088,1739743864137,-791.59,0.00011698,2]
[353303089,1739743864147,-858.87,0.00011698,2]
[353303090,1739743864158,-1165.86,0.00011698,2]
[353303091,1739743864168,-500.0,0.00011698,2]
[353303092,1739743864179,-717.35,0.00011698,2]
[353303093,1739743864190,-500.0,0.00011698,2]
[353303094,1739743864200,-500.0,0.00011698,2]
[353303095,1739743864211,-807.84,0.00011698,2]
[353303096,1739743864221,-500.0,0.00011698,2]
[353303097,1739743864231,-894.1,0.00011698,2]
[353303098,1739743864242,-1096.31495187,0.00011698,2]
[353303099,1739743864737,-347.07504813,0.00011698,2]
[353303100,1739743864748,-541.07726152,0.00011698,2]
[353303101,1739743864760,-111.20273848,0.00011698,2]
[353303102,1739743864771,-573.79,0.00011698,2]
[353303103,1739743864780,-500.0,0.00011698,2]
[353303104,1739743864790,-1116.66,0.00011698,2]
[353303105,1739743864800,-500.0,0.00011698,2]
[353303106,1739743864809,-500.0,0.00011698,2]
[353303107,1739743864818,-500.0,0.00011698,2]
[353303108,1739743864828,-628.06,0.00011698,2]
[353303109,1739743864837,-3109.81673496,0.00011701,2]
[353303110,1739743864846,-3109.81673496,0.00011766,2]
[353303111,1739743864857,-12048.20121417,0.00011777,2]
[353303112,1739743864869,-9817.244501,0.00011777,2]
[353303113,1739743864881,-126073.65525866,0.00011777,2]
[353303114,1739743864893,-15840.10390776,0.00011777,2]
[353303115,1739743864904,-5493.06988919,0.00011777,2]
[353303116,1739743864916,-5983.59142758,0.00011777,2]
[353303117,1739743864928,-294.72389054,0.00011777,2]
[353303118,1739743864940,-6582.0707223,0.00011777,2]
[353303119,1739743864951,-40775.9895952,0.00011777,2]
[353303120,1739743864963,-1977.45287042,0.00011777,2]
[353303121,1739743864975,-30872.82167528,0.00011777,2]
[353303122,1739743864986,-500.0,0.00011779,2]
[353303123,1739743864997,-832.06,0.00011779,2]
[353303124,1739743865007,-500.0,0.00011779,2]
[353303125,1739743865017,-500.0,0.00011779,2]
[353303126,1739743865027,-500.0,0.00011779,2]
[353303127,1739743865036,-500.0,0.00011779,2]
[353303128,1739743865045,-500.0,0.00011779,2]
[353303129,1739743865055,-500.0,0.00011779,2]
[353303130,1739743865065,-500.0,0.00011779,2]
[353303131,1739743865075,-500.0,0.00011779,2]
[353303132,1739743865085,-500.0,0.00011779,2]
[353303133,1739743865095,-500.0,0.00011779,2]
[353303134,1739743865104,-500.0,0.00011779,2]
[353303135,1739743865114,-500.0,0.00011779,2]
[353303136,1739743865124,-500.0,0.00011779,2]
[353303137,1739743865133,-519.55,0.00011779,2]
[353303138,1739743865142,-500.0,0.00011779,2]
[353303139,1739743865153,-545.36,0.00011779,2]
[353303140,1739743865162,-537.82,0.00011779,2]
[353303141,1739743865172,-500.0,0.00011779,2]
[353303142,1739743865182,-428.619564,0.00011779,2]
[353303143,1739743865192,-500.0,0.00011779,2]
[353303144,1739743865201,-500.0,0.00011779,2]
[353303145,1739743865211,-605.506852,0.00011779,2]
[353303146,1739743865221,-209.54,0.00011779,2]
[353303147,1739743865230,-500.0,0.00011779,2]
[353303148,1739743865240,-500.0,0.00011779,2]
[353303149,1739743865250,-885.61,0.00011779,2]
[353303150,1739743865259,-500.0,0.00011779,2]
[353303151,1739743865269,-611.27,0.00011779,2]
[353303152,1739743865278,-551.58,0.00011779,2]
[353303153,1739743865288,-660.26,0.00011779,2]
[353303154,1739743865297,-593.26,0.00011779,2]
[353303155,1739743865308,-500.0,0.00011779,2]
[353303156,1739743865317,-553.94,0.00011779,2]
[353303157,1739743865327,-565.94,0.00011779,2]
[353303158,1739743865337,-500.0,0.00011779,2]
[353303159,1739743865347,-673.88,0.00011779,2]
[353303160,1739743865356,-776.79,0.00011779,2]
[353303161,1739743865366,-500.0,0.00011779,2]
[353303162,1739743865375,-500.0,0.00011779,2]
[353303163,1739743865385,-306.44,0.00011779,2]
[353303164,1739743865395,-500.0,0.00011779,2]
[353303165,1739743865405,-603.97,0.00011779,2]
[353303166,1739743865414,-662.07,0.00011779,2]
[353303167,1739743865424,-500.0,0.00011779,2]
[353303168,1739743865433,-500.0,0.00011779,2]
[353303169,1739743865443,-584.92,0.00011779,2]
[353303170,1739743865452,-500.0,0.00011779,2]
[353303171,1739743865461,-500.0,0.00011779,2]
[353303172,1739743865470,-709.16,0.00011779,2]
[353303173,1739743865479,-1084.76,0.00011779,2]
[353303174,1739743865489,-500.0,0.00011779,2]
[353303175,1739743865499,-496.46,0.00011779,2]
[353303176,1739743865509,-862.95,0.00011779,2]
[353303177,1739743865518,-500.0,0.00011779,2]
[353303178,1739743865530,-2109.33,0.00011779,2]
[353303179,1739743865542,-659.1,0.00011779,2]
[353303180,1739743865551,-500.0,0.00011779,2]
[353303181,1739743865560,-796.43,0.00011779,2]
[353303182,1739743865571,-500.0,0.00011779,2]
[353303183,1739743865581,-1070.81,0.00011779,2]
[353303184,1739743865591,-676.0,0.00011779,2]
[353303185,1739743865601,-1331.97,0.00011779,2]
[353303186,1739743865611,-955.73,0.00011779,2]
[353303187,1739743865622,-500.0,0.00011779,2]
[353303188,1739743865632,-1388.19,0.00011779,2]
[353303189,1739743865641,-3526.87,0.00011779,2]
[353303190,1739743865650,-793.3,0.00011779,2]
[353303191,1739743865660,-839.11,0.00011779,2]
[353303192,1739743865669,-632.97,0.00011779,2]
[353303193,1739743865680,-928.41,0.00011779,2]
[353303194,1739743865690,-947.29,0.00011779,2]
[353303195,1739743865700,-500.0,0.00011779,2]
[353303196,1739743865710,-604.69,0.00011779,2]
[353303197,1739743865720,-1004.66,0.00011779,2]
[353303198,1739743865730,-930.09,0.00011779,2]
[353303199,1739743865739,-1090.64,0.00011779,2]
[353303200,1739743865750,-506.83,0.00011779,2]
[353303201,1739743865759,-500.0,0.00011779,2]
[353303202,1739743865769,-552.02,0.00011779,2]
[353303203,1739743865778,-3080.91,0.00011779,2]
[353303204,1739743865788,-557.45,0.00011779,2]
[353303205,1739743865798,-609.6,0.00011779,2]
[353303206,1739743865808,-836.96,0.00011779,2]
[353303207,1739743865817,-500.0,0.00011779,2]
[353303208,1739743865828,-788.37,0.00011779,2]
[353303209,1739743865838,-500.0,0.00011779,2]
[353303210,1739743865848,-535.91,0.00011779,2]
[353303211,1739743865858,-1029.76,0.00011779,2]
[353303212,1739743865867,-757.55,0.00011779,2]
[353303213,1739743865877,-1207.77,0.00011779,2]
[353303214,1739743865887,-993.67,0.00011779,2]
[353303215,1739743865898,-500.0,0.00011779,2]
[353303216,1739743865908,-883.43,0.00011779,2]
[353303217,1739743865917,-1193.44,0.00011779,2]
[353303218,1739743865927,-1120.23,0.00011779,2]
[353303219,1739743865937,-1029.53,0.00011779,2]
[353303220,1739743865947,-500.0,0.00011779,2]
[353303221,1739743865957,-745.24,0.00011779,2]
[353303222,1739743865967,-2299.91,0.00011779,2]
[353303223,1739743865977,-500.0,0.00011779,2]
[353303224,1739743865987,-1170.51,0.00011779,2]
[353303225,1739743865997,-500.0,0.00011779,2]
[353303226,1739743866007,-500.0,0.00011779,2]
[353303227,1739743866017,-1124.91,0.00011779,2]
[353303228,1739743866026,-500.0,0.00011779,2]
[353303229,1739743866036,-500.0,0.00011779,2]
[353303230,1739743866046,-632.96,0.00011779,2]
[353303231,1739743866056,-1038.91190872,0.00011779,2]
[353303232,1739743866070,-533.93809128,0.00011779,2]
[353303233,1739743866080,-1256.66,0.00011779,2]
[353303234,1739743866090,-500.0,0.00011779,2]
[353303235,1739743866100,-500.0,0.00011779,2]
[353303236,1739743866110,-500.0,0.00011779,2]
[353303237,1739743866120,-526.13,0.00011779,2]
[353303238,1739743866129,-1051.04,0.00011779,2]
[353303239,1739743866139,-916.19,0.00011779,2]
[353303240,1739743866149,-1373.28,0.00011779,2]
[353303241,1739743866158,-670.74,0.00011779,2]
[353303242,1739743866168,-3030.67,0.00011779,2]
[353303243,1739743866178,-558.69,0.00011779,2]
[353303244,1739743866188,-1287.49,0.00011779,2]
[353303245,1739743866198,-2285.4,0.00011779,2]
[353303246,1739743866209,-962.38,0.00011779,2]
[353303247,1739743866219,-919.68,0.00011779,2]
[353303248,1739743866228,-500.0,0.00011779,2]
[353303249,1739743866238,-1272.04,0.00011779,2]
[353303250,1739743866247,-500.0,0.00011779,2]
[353303251,1739743866257,-1620.04,0.00011779,2]
[353303252,1739743866266,-626.14,0.00011779,2]
[353303253,1739743866275,-198.084816,0.0001178,2]
[353303254,1739743866285,-355.54562471,0.0001178,2]
[353303255,1739743866294,-500.0,0.0001178,2]
[353303256,1739743866303,-500.0,0.0001178,2]
[353303257,1739743866312,-500.0,0.0001178,2]
[353303258,1739743866322,-173.55,0.0001178,2]
[353303259,1739743866330,-500.0,0.0001178,2]
[353303260,1739743866339,-500.0,0.0001178,2]
[353303261,1739743866350,-999.0,0.0001178,2]
[353303262,1739743866359,-999.0,0.0001178,2]
[353303263,1739743866368,-999.0,0.0001178,2]
[353303264,1739743866377,-999.0,0.0001178,2]
[353303265,1739743866386,-999.0,0.0001178,2]
[353303266,1739743866396,-999.0,0.0001178,2]
[353303267,1739743866405,-999.0,0.0001178,2]
[353303268,1739743866414,-999.0,0.0001178,2]
[353303269,1739743866423,-999.0,0.0001178,2]
[353303270,1739743866431,-999.0,0.0001178,2]
[353303271,1739743866441,-999.0,0.0001178,2]
[353303272,1739743866450,-999.0,0.0001178,2]
[353303273,1739743866459,-999.0,0.0001178,2]
[353303274,1739743866469,-999.0,0.0001178,2]
[353303275,1739743866478,-999.0,0.0001178,2]
[353303276,1739743866487,-999.0,0.0001178,2]
[353303277,1739743866499,-999.0,0.0001178,2]
[353303278,1739743866510,-999.0,0.0001178,2]
[353303279,1739743866519,-999.0,0.0001178,2]
[353303280,1739743866530,-1019.0,0.0001178,2]
[353303281,1739743866540,-714.06,0.0001178,2]
[353303282,1739743866549,-500.0,0.0001178,2]
[353303283,1739743866558,-80.3375308,0.0001178,2]
[353303284,1739743866897,-419.6624692,0.0001178,2]
[353303285,1739743866907,-500.0,0.0001178,2]
[353303286,1739743866917,-728.13,0.0001178,2]
[353303287,1739743866926,-500.0,0.0001178,2]
[353303288,1739743866935,-214.46626429,0.0001178,2]
[353303289,1739743866947,-291.44778847,0.0001178,2]
[353303290,1739743866958,-77.48594724,0.0001178,2]
[353303291,1739743866968,-468.63678977,0.0001178,2]
[353303292,1739743866978,-31.36321023,0.0001178,2]
[353303293,1739743866987,-500.0,0.0001178,2]
[353303294,1739743866997,-500.0,0.0001178,2]
[353303295,1739743867007,-500.0,0.0001178,2]
[353303296,1739743867017,-500.0,0.0001178,2]
[353303297,1739743867026,-500.0,0.0001178,2]
[353303298,1739743867036,-500.0,0.0001178,2]
[353303299,1739743867045,-500.0,0.0001178,2]
[353303300,1739743867054,-257.62878998,0.0001178,2]
[353303301,1739743867065,-242.37121002,0.0001178,2]
[353303302,1739743867074,-569.07,0.0001178,2]
[353303303,1739743867083,-639.31,0.0001178,2]
[353303304,1739743867092,-500.0,0.0001178,2]
[353303305,1739743867102,-500.0,0.0001178,2]
[353303306,1739743867111,-500.0,0.0001178,2]
[353303307,1739743867121,-500.0,0.0001178,2]
[353303308,1739743867131,-500.0,0.0001178,2]
[353303309,1739743867141,-500.0,0.0001178,2]
[353303310,1739743867150,-746.52,0.0001178,2]
[353303311,1739743867160,-620.87,0.0001178,2]
[353303312,1739743867169,-527.75,0.0001178,2]
[353303313,1739743867178,-703.13,0.0001178,2]
[353303314,1739743867187,-758.03,0.0001178,2]
[353303315,1739743867196,-500.0,0.0001178,2]
[353303316,1739743867206,-500.0,0.0001178,2]
[353303317,1739743867215,-500.0,0.0001178,2]
[353303318,1739743867225,-500.0,0.0001178,2]
[353303319,1739743867234,-500.0,0.0001178,2]
[353303320,1739743867244,-523.85,0.0001178,2]
[353303321,1739743867253,-500.0,0.0001178,2]
[353303322,1739743867263,-500.0,0.0001178,2]
[353303323,1739743867272,-536.09,0.0001178,2]
[353303324,1739743867282,-500.0,0.0001178,2]
[353303325,1739743867291,-500.0,0.0001178,2]
[353303326,1739743867301,-640.13,0.0001178,2]
[353303327,1739743867312,-755.41,0.0001178,2]
[353303328,1739743867321,-828.92,0.0001178,2]
[353303329,1739743867331,-1036.75,0.0001178,2]
[353303330,1739743867340,-657.03,0.0001178,2]
[353303331,1739743867350,-1298.67,0.0001178,2]
[353303332,1739743867360,-1000.0,0.0001178,2]
[353303333,1739743867371,-1040.32,0.0001178,2]
[353303334,1739743867381,-1172.76,0.0001178,2]
[353303335,1739743867391,-500.0,0.0001178,2]
[353303336,1739743867400,-500.0,0.0001178,2]
[353303337,1739743867409,-881.8,0.0001178,2]
[353303338,1739743867419,-500.0,0.0001178,2]
[353303339,1739743867428,-312.11095043,0.0001178,2]
[353303340,1739743867439,-187.88904957,0.0001178,2]
[353303341,1739743867449,-879.50970442,0.0001178,2]
[353303342,1739743867460,-499.47029558,0.0001178,2]
[353303343,1739743867470,-537.54,0.0001178,2]
[353303344,1739743867479,-1016.8,0.0001178,2]
[353303345,1739743867489,-500.0,0.0001178,2]
[353303346,1739743867499,-1632.01,0.0001178,2]
[353303347,1739743867508,-740.54,0.0001178,2]
[353303348,1739743867518,-853.23,0.0001178,2]
[353303349,1739743867529,-113.50366667,0.0001178,2]
[353303350,1739743867544,-430.33633333,0.0001178,2]
[353303351,1739743867554,-179.16366667,0.0001178,2]
[353303352,1739743867575,-297.82927178,0.0001178,2]
[353303353,1739743867588,-239.65706155,0.0001178,2]
[353303354,1739743867598,-53.35077283,0.0001178,2]
[353303355,1739743867610,-446.64922717,0.0001178,2]
[353303356,1739743867620,-4.18632582,0.0001178,2]
[353303357,1739743867633,-614.32367418,0.0001178,2]
[353303358,1739743867642,-408.79585492,0.0001178,2]
[353303359,1739743867654,-190.74414508,0.0001178,2]
[353303360,1739743867664,-500.0,0.0001178,2]
[353303361,1739743867673,-791.59,0.0001178,2]
[353303362,1739743867683,-858.87,0.0001178,2]
[353303363,1739743867692,-574.91324061,0.0001178,2]
[353303364,1739743867704,-590.94675939,0.0001178,2]
[353303365,1739743867714,-500.0,0.0001178,2]
[353303366,1739743867724,-717.35,0.0001178,2]
[353303367,1739743867734,-500.0,0.0001178,2]
[353303368,1739743867743,-500.0,0.0001178,2]
[353303369,1739743867753,-807.84,0.0001178,2]
[353303370,1739743867762,-500.0,0.0001178,2]
[353303371,1739743867771,-894.1,0.0001178,2]
[353303372,1739743867781,-1443.39,0.0001178,2]
[353303373,1739743867790,-652.28,0.0001178,2]
[353303374,1739743867799,-573.79,0.0001178,2]
[353303375,1739743867809,-500.0,0.0001178,2]
[353303376,1739743867819,-1116.66,0.0001178,2]
[353303377,1739743867829,-500.0,0.0001178,2]
[353303378,1739743867838,-500.0,0.0001178,2]
[353303379,1739743867847,-500.0,0.0001178,2]
[353303380,1739743867856,-628.06,0.0001178,2]
[353303381,1739743867865,-3109.81673496,0.00011831,2]
[353303382,1739743867875,-200.0,0.00011834,2]
[353303383,1739743867884,-2447.18,0.0001186,2]
[353303384,1739743867893,-500.0,0.00011861,2]
[353303385,1739743867903,-197.78,0.00011861,2]
[353303386,1739743867911,-500.0,0.00011861,2]
[353303387,1739743867921,-500.0,0.00011861,2]
[353303388,1739743867931,-500.0,0.00011861,2]
[353303389,1739743867941,-500.0,0.00011861,2]
[353303390,1739743867950,-500.0,0.00011861,2]
[353303391,1739743867959,-232.52,0.00011861,2]
[353303392,1739743867969,-500.0,0.00011861,2]
[353303393,1739743867978,-500.0,0.00011861,2]
[353303394,1739743867988,-500.0,0.00011861,2]
[353303395,1739743867997,-500.0,0.00011861,2]
[353303396,1739743868006,-184.7097907,0.00011861,2]
[353303397,1739743868018,-315.2902093,0.00011861,2]
[353303398,1739743868027,-500.0,0.00011861,2]
[353303399,1739743868037,-292.7097907,0.00011861,2]
[353303400,1739743868048,-226.8402093,0.00011861,2]
[353303401,1739743868057,-500.0,0.00011861,2]
[353303402,1739743868068,-545.36,0.00011861,2]
[353303403,1739743868076,-537.82,0.00011861,2]
[353303404,1739743868086,-500.0,0.00011861,2]
[353303405,1739743868095,-428.619564,0.00011861,2]
[353303406,1739743868104,-500.0,0.00011861,2]
[353303407,1739743868113,-500.0,0.00011861,2]
[353303408,1739743868122,-605.506852,0.00011861,2]
[353303409,1739743868132,-500.0,0.00011861,2]
[353303410,1739743868141,-523.07612687,0.00011861,2]
[353303411,1739743868151,-885.61,0.00011861,2]
[353303412,1739743868160,-500.0,0.00011861,2]
[353303413,1739743868171,-611.27,0.00011861,2]
[353303414,1739743868182,-551.58,0.00011861,2]
[353303415,1739743868192,-660.26,0.00011861,2]
[353303416,1739743868200,-593.26,0.00011861,2]
[353303417,1739743868210,-500.0,0.00011861,2]
[353303418,1739743868219,-553.94,0.00011861,2]
[353303419,1739743868228,-565.94,0.00011861,2]
[353303420,1739743868237,-500.0,0.00011861,2]
[353303421,1739743868246,-673.88,0.00011861,2]
[353303422,1739743868255,-776.79,0.00011861,2]
[353303423,1739743868264,-500.0,0.00011861,2]
[353303424,1739743868274,-500.0,0.00011861,2]
[353303425,1739743868283,-500.0,0.00011861,2]
[353303426,1739743868293,-603.97,0.00011861,2]
[353303427,1739743868302,-662.07,0.00011861,2]
[353303428,1739743868311,-500.0,0.00011861,2]
[353303429,1739743868320,-500.0,0.00011861,2]
[353303430,1739743868329,-584.92,0.00011861,2]
[353303431,1739743868338,-500.0,0.00011861,2]
[353303432,1739743868347,-500.0,0.00011861,2]
[353303433,1739743868356,-709.16,0.00011861,2]
[353303434,1739743868366,-500.0,0.00011861,2]
[353303435,1739743868376,-500.0,0.00011861,2]
[353303436,1739743868385,-2109.33,0.00011861,2]
[353303437,1739743868394,-659.1,0.00011861,2]
[353303438,1739743868404,-500.0,0.00011861,2]
[353303439,1739743868413,-796.43,0.00011861,2]
[353303440,1739743868423,-500.0,0.00011861,2]
[353303441,1739743868432,-1070.81,0.00011861,2]
[353303442,1739743868442,-676.0,0.00011861,2]
[353303443,1739743868451,-1331.97,0.00011861,2]
[353303444,1739743868463,-450.29621,0.00011861,2]
[353303445,1739743868475,-505.43379,0.00011861,2]
[353303446,1739743868485,-500.0,0.00011861,2]
[353303447,1739743868497,-1080.91252808,0.00011861,2]
[353303448,1739743868509,-307.27747192,0.00011861,2]
[353303449,1739743868519,-3526.87,0.00011861,2]
[353303450,1739743868530,-793.3,0.00011861,2]
[353303451,1739743868543,-839.11,0.00011861,2]
[353303452,1739743868552,-66.0128947,0.00011861,2]
[353303453,1739743868573,-500.0,0.00011861,2]
[353303454,1739743868585,-66.9571053,0.00011861,2]
[353303455,1739743868595,-210.64971352,0.00011861,2]
[353303456,1739743868606,-717.76028648,0.00011861,2]
[353303457,1739743868616,-947.29,0.00011861,2]
[353303458,1739743868626,-256.54,0.00011861,2]
[353303459,1739743868635,-604.69,0.00011861,2]
[353303460,1739743868644,-1004.66,0.00011861,2]
[353303461,1739743868654,-930.09,0.00011861,2]
[353303462,1739743868663,-1090.64,0.00011861,2]
[353303463,1739743868673,-506.83,0.00011861,2]
[353303464,1739743868682,-500.0,0.00011861,2]
[353303465,1739743868692,-552.02,0.00011861,2]
[353303466,1739743868701,-918.95971358,0.00011861,2]
[353303467,1739743868714,-2161.95028642,0.00011861,2]
[353303468,1739743868724,-557.45,0.00011861,2]
[353303469,1739743868733,-445.89971358,0.00011861,2]
[353303470,1739743868745,-163.70028642,0.00011861,2]
[353303471,1739743868755,-836.96,0.00011861,2]
[353303472,1739743868764,-500.0,0.00011861,2]
[353303473,1739743868775,-210.28214958,0.00011861,2]
[353303474,1739743868787,-578.08785042,0.00011861,2]
[353303475,1739743868796,-500.0,0.00011861,2]
[353303476,1739743868806,-58.15051798,0.00011861,2]
[353303477,1739743868817,-477.75948202,0.00011861,2]
[353303478,1739743868826,-495.73303798,0.00011861,2]
[353303479,1739743868838,-346.02250741,0.00011861,2]
[353303480,1739743869224,-832.87,0.00011039,2]
[353303481,1739743869233,-335.03,0.00011121,2]
[353303482,1739743869244,-497.84,0.00011121,2]
[353303483,1739743869253,-832.87,0.00011204,2]
[353303484,1739743869262,-832.87,0.00011286,2]
[353303485,1739743869272,-188.00445461,0.00011861,2]
[353303486,1739743869281,-757.55,0.00011861,2]
[353303487,1739743869290,-1207.77,0.00011861,2]
[353303488,1739743869300,-993.67,0.00011861,2]
[353303489,1739743869309,-500.0,0.00011861,2]
[353303490,1739743869318,-883.43,0.00011861,2]
[353303491,1739743869328,-1193.44,0.00011861,2]
[353303492,1739743869337,-1120.23,0.00011861,2]
[353303493,1739743869347,-1029.53,0.00011861,2]
[353303494,1739743869356,-500.0,0.00011861,2]
[353303495,1739743869365,-745.24,0.00011861,2]
[353303496,1739743869375,-2299.91,0.00011861,2]
[353303497,1739743869384,-500.0,0.00011861,2]
[353303498,1739743869394,-1170.51,0.00011861,2]
[353303499,1739743869404,-500.0,0.00011861,2]
[353303500,1739743869413,-500.0,0.00011861,2]
[353303501,1739743869423,-1124.91,0.00011861,2]
[353303502,1739743869433,-500.0,0.00011861,2]
[353303503,1739743869443,-500.0,0.00011861,2]
[353303504,1739743869453,-632.96,0.00011861,2]
[353303505,1739743869463,-1572.85,0.00011861,2]
[353303506,1739743869472,-1256.66,0.00011861,2]
[353303507,1739743869483,-500.0,0.00011861,2]
[353303508,1739743869492,-500.0,0.00011861,2]
[353303509,1739743869503,-500.0,0.00011861,2]
[353303510,1739743869512,-526.13,0.00011861,2]
[353303511,1739743869521,-1051.04,0.00011861,2]
[353303512,1739743869531,-916.19,0.00011861,2]
[353303513,1739743869543,-1373.28,0.00011861,2]
[353303514,1739743869552,-670.74,0.00011861,2]
[353303515,1739743869562,-3030.67,0.00011861,2]
[353303516,1739743869571,-558.69,0.00011861,2]
[353303517,1739743869581,-1287.49,0.00011861,2]
[353303518,1739743869591,-2285.4,0.00011861,2]
[353303519,1739743869601,-962.38,0.00011861,2]
[353303520,1739743869610,-919.68,0.00011861,2]
[353303521,1739743869620,-500.0,0.00011861,2]
[353303522,1739743869630,-1272.04,0.00011861,2]
[353303523,1739743869640,-327.38,0.00011861,2]
[353303524,1739743869650,-1620.04,0.00011861,2]
[353303525,1739743869659,-626.14,0.00011861,2]
[353303526,1739743869668,-1036.75,0.00011862,2]
[353303527,1739743869678,-1298.67,0.00011862,2]
[353303528,1739743869687,-1000.0,0.00011862,2]
[353303529,1739743869696,-1172.76,0.00011862,2]
[353303530,1739743869707,-363.38,0.00011862,2]
[353303531,1739743869717,-500.0,0.00011862,2]